fUSD/lending_fUSD_20250119
["ID","MTS","AMOUNT","RATE_DAILY","PERIOD"]
[349536541,1737283880900,-2260.69,0.00020273,2]
[349536542,1737283880910,-500.0,0.00020273,2]
[349536543,1737283880920,-519.34625926,0.00020273,2]
[349536544,1737283880930,-1124.05,0.00020273,2]
[349536545,1737283880939,-500.0,0.00020273,2]
[349536546,1737283880948,-500.0,0.00020273,2]
[349536547,1737283880957,-544.77,0.00020273,2]
[349536548,1737283880967,-500.0,0.00020273,2]
[349536549,1737283880976,-500.0,0.00020273,2]
[349536550,1737283880986,-1632.27,0.00020273,2]
[349536551,1737283880995,-500.0,0.00020273,2]
[349536552,1737283881004,-1360.05,0.00020273,2]
[349536553,1737283881014,-550.47,0.00020273,2]
[349536554,1737283881024,-730.23,0.00020273,2]
[349536555,1737283881034,-500.0,0.00020273,2]
[349536556,1737283881044,-1209.91,0.00020273,2]
[349536557,1737283881053,-500.0,0.00020273,2]
[349536558,1737283881062,-500.0,0.00020273,2]
[349536559,1737283881072,-962.98,0.00020273,2]
[349536560,1737283881081,-500.47216521,0.00020273,2]
[349536561,1737283881091,-500.0,0.00020273,2]
[349536562,1737283881114,-500.0,0.00020273,2]
[349536563,1737283881132,-1043.59,0.00020273,2]
[349536564,1737283881152,-704.36,0.00020273,2]
[349536565,1737283881172,-500.0,0.00020273,2]
[349536566,1737283881190,-543.14,0.00020273,2]
[349536567,1737283881209,-2894.56,0.00020273,2]
[349536568,1737283881228,-500.0,0.00020273,2]
[349536569,1737283881247,-500.0,0.00020273,2]
[349536570,1737283881268,-1112.25,0.00020273,2]
[349536571,1737283881287,-1126.32,0.00020273,2]
[349536572,1737283881305,-500.0,0.00020273,2]
[349536573,1737283881323,-541.55,0.00020273,2]
[349536574,1737283881341,-1448.99,0.00020273,2]
[349536575,1737283881357,-500.0,0.00020273,2]
[349536576,1737283881374,-500.0,0.00020273,2]
[349536577,1737283881389,-913.02,0.00020273,2]
[349536578,1737283881407,-500.0,0.00020273,2]
[349536579,1737283881423,-500.0,0.00020273,2]
[349536580,1737283881438,-500.0,0.00020273,2]
[349536581,1737283881453,-1265.52,0.00020273,2]
[349536582,1737283881468,-4009.74,0.00020273,2]
[349536583,1737283881483,-452.32791764,0.00020273,2]
[349536584,1737283881499,-500.0,0.00020273,2]
[349536585,1737283881515,-500.0,0.00020273,2]
[349536586,1737283881530,-700.51,0.00020273,2]
[349536587,1737283881545,-500.0,0.00020273,2]
[349536588,1737283881562,-500.0,0.00020273,2]
[349536589,1737283881578,-500.0,0.00020273,2]
[349536590,1737283881594,-500.0,0.00020273,2]
[349536591,1737283881610,-940.25,0.00020273,2]
[349536592,1737283881625,-500.0,0.00020273,2]
[349536593,1737283881640,-500.0,0.00020273,2]
[349536594,1737283881655,-500.0,0.00020273,2]
[349536595,1737283881670,-2618.63,0.00020273,2]
[349536596,1737283881685,-500.0,0.00020273,2]
[349536597,1737283881701,-500.0,0.00020273,2]
[349536598,1737283881716,-500.0,0.00020273,2]
[349536599,1737283881731,-500.0,0.00020273,2]
[349536600,1737283881746,-600.2,0.00020273,2]
[349536601,1737283881760,-500.0,0.00020273,2]
[349536602,1737283881774,-500.0,0.00020273,2]
[349536603,1737283881789,-500.0,0.00020273,2]
[349536604,1737283881805,-7315.83,0.00020273,2]
[349536605,1737283881819,-2144.05,0.00020273,2]
[349536606,1737283881834,-1886.57,0.00020273,2]
[349536607,1737283881849,-1320.33,0.00020273,2]
[349536608,1737283881863,-500.0,0.00020273,2]
[349536609,1737283881878,-500.0,0.00020273,2]
[349536610,1737283881894,-500.0,0.00020273,2]
[349536611,1737283881909,-500.0,0.00020273,2]
[349536612,1737283881924,-1833.46,0.00020273,2]
[349536613,1737283881943,-500.0,0.00020273,2]
[349536614,1737283881958,-500.0,0.00020273,2]
[349536615,1737283881973,-1146.48,0.00020273,2]
[349536616,1737283881987,-500.0,0.00020273,2]
[349536617,1737283882003,-6964.65,0.00020273,2]
[349536618,1737283882018,-516.47627339,0.00020273,2]
[349536619,1737283882033,-510.58708937,0.00020273,2]
[349536620,1737283882048,-1729.83,0.00020273,2]
[349536621,1737283882063,-500.0,0.00020273,2]
[349536622,1737283882077,-500.0,0.00020273,2]
[349536623,1737283882093,-2349.68,0.00020273,2]
[349536624,1737283882108,-500.0,0.00020273,2]
[349536625,1737283882123,-2142.93,0.00020273,2]
[349536626,1737283882138,-508.60085833,0.00020273,2]
[349536627,1737283882153,-500.0,0.00020273,2]
[349536628,1737283882168,-1744.21,0.00020273,2]
[349536629,1737283882184,-686.43,0.00020273,2]
[349536630,1737283882199,-500.0,0.00020273,2]
[349536631,1737283882214,-2892.09,0.00020273,2]
[349536632,1737283882229,-151.0,0.00020273,2]
[349536633,1737283882244,-542.96616277,0.00020273,2]
[349536634,1737283882262,-500.0,0.00020273,2]
[349536635,1737283882277,-500.0,0.00020273,2]
[349536636,1737283882292,-205.56,0.00020273,2]
[349536637,1737283882307,-623.62,0.00020273,2]
[349536638,1737283882322,-1002.08,0.00020273,2]
[349536639,1737283882338,-500.0,0.00020273,2]
[349536640,1737283882488,-770.77,0.00020273,2]
[349536641,1737283882524,-9460.13,0.00020273,2]
[349536642,1737283882534,-2072.12,0.00020273,2]
[349536643,1737283882543,-500.0,0.00020273,2]
[349536644,1737283882553,-4098.31,0.00020273,2]
[349536645,1737283882562,-500.0,0.00020273,2]
[349536646,1737283882571,-503.74,0.00020273,2]
[349536647,1737283882580,-500.0,0.00020273,2]
[349536648,1737283882589,-500.0,0.00020273,2]
[349536649,1737283882598,-509.25,0.00020273,2]
[349536650,1737283882607,-500.0,0.00020273,2]
[349536651,1737283882616,-500.0,0.00020273,2]
[349536652,1737283882625,-500.0,0.00020273,2]
[349536653,1737283882634,-500.0,0.00020273,2]
[349536654,1737283882644,-500.0,0.00020273,2]
[349536655,1737283882653,-1622.26,0.00020273,2]
[349536656,1737283882662,-500.0,0.00020273,2]
[349536657,1737283882671,-500.0,0.00020273,2]
[349536658,1737283882680,-839.58,0.00020273,2]
[349536659,1737283882690,-504.24678582,0.00020273,2]
[349536660,1737283882700,-622.13,0.00020273,2]
[349536661,1737283882710,-746.16,0.00020273,2]
[349536662,1737283882719,-500.0,0.00020273,2]
[349536663,1737283882729,-2122.49,0.00020273,2]
[349536664,1737283882739,-700.78,0.00020273,2]
[349536665,1737283882749,-151.0,0.00020273,2]
[349536666,1737283882759,-511.5,0.00020273,2]
[349536667,1737283882769,-500.0,0.00020273,2]
[349536668,1737283882779,-500.0,0.00020273,2]
[349536669,1737283882789,-500.0,0.00020273,2]
[349536670,1737283882799,-1394.781451,0.00020273,2]
[349536671,1737283882808,-6710.42,0.00020273,2]
[349536672,1737283882818,-500.0,0.00020273,2]
[349536673,1737283882827,-968.36,0.00020273,2]
[349536674,1737283882836,-500.0,0.00020273,2]
[349536675,1737283882846,-500.0,0.00020273,2]
[349536676,1737283882856,-500.0,0.00020273,2]
[349536677,1737283882865,-1394.781451,0.00020273,2]
[349536678,1737283882875,-500.0,0.00020273,2]
[349536679,1737283882884,-2138.74,0.00020273,2]
[349536680,1737283882895,-2990.26,0.00020273,2]
[349536681,1737283882904,-500.0,0.00020273,2]
[349536682,1737283882914,-939.99,0.00020273,2]
[349536683,1737283882923,-1497.89,0.00020273,2]
[349536684,1737283882933,-500.0,0.00020273,2]
[349536685,1737283882943,-500.0,0.00020273,2]
[349536686,1737283882952,-500.0,0.00020273,2]
[349536687,1737283882962,-500.0,0.00020273,2]
[349536688,1737283882972,-500.0,0.00020273,2]
[349536689,1737283882982,-1550.84,0.00020273,2]
[349536690,1737283882992,-500.0,0.00020273,2]
[349536691,1737283883001,-523.43375537,0.00020273,2]
[349536692,1737283883011,-500.0,0.00020273,2]
[349536693,1737283883020,-500.0,0.00020273,2]
[349536694,1737283883029,-1454.18,0.00020273,2]
[349536695,1737283883038,-660.46,0.00020273,2]
[349536696,1737283883047,-2515.58,0.00020273,2]
[349536697,1737283883056,-857.18,0.00020273,2]
[349536698,1737283883065,-500.0,0.00020273,2]
[349536699,1737283883074,-500.0,0.00020273,2]
[349536700,1737283883083,-500.0,0.00020273,2]
[349536701,1737283883092,-1304.59,0.00020273,2]
[349536702,1737283883101,-198.34752935,0.00020273,2]
[349536703,1737283883111,-1399.53,0.00020273,2]
[349536704,1737283883120,-500.0,0.00020273,2]
[349536705,1737283883129,-500.0,0.00020273,2]
[349536706,1737283883139,-961.23,0.00020273,2]
[349536707,1737283883148,-500.0,0.00020273,2]
[349536708,1737283883157,-500.0,0.00020273,2]
[349536709,1737283883167,-6814.74,0.00020273,2]
[349536710,1737283883178,-500.0,0.00020273,2]
[349536711,1737283883187,-563.53,0.00020273,2]
[349536712,1737283883206,-613.36469968,0.00020273,2]
[349536713,1737283883216,-2694.65,0.00020273,2]
[349536714,1737283883226,-500.0,0.00020273,2]
[349536715,1737283883236,-500.0,0.00020273,2]
[349536716,1737283883246,-500.0,0.00020273,2]
[349536717,1737283883258,-500.0,0.00020273,2]
[349536718,1737283883268,-2281.0,0.00020273,2]
[349536719,1737283883278,-2319.64,0.00020273,2]
[349536720,1737283883287,-500.0,0.00020273,2]
[349536721,1737283883297,-500.0,0.00020273,2]
[349536722,1737283883307,-500.0,0.00020273,2]
[349536723,1737283883316,-517.1690949,0.00020273,2]
[349536724,1737283883325,-500.0,0.00020273,2]
[349536725,1737283883335,-579.85,0.00020273,2]
[349536726,1737283883344,-608.39,0.00020273,2]
[349536727,1737283883353,-814.26,0.00020273,2]
[349536728,1737283883362,-500.0,0.00020273,2]
[349536729,1737283883371,-500.0,0.00020273,2]
[349536730,1737283883380,-666.3,0.00020273,2]
[349536731,1737283883389,-510.93,0.00020273,2]
[349536732,1737283883398,-1602.86,0.00020273,2]
[349536733,1737283883407,-1636.5,0.00020273,2]
[349536734,1737283883416,-500.0,0.00020273,2]
[349536735,1737283883426,-500.0,0.00020273,2]
[349536736,1737283883435,-500.0,0.00020273,2]
[349536737,1737283883445,-626.38,0.00020273,2]
[349536738,1737283883454,-780.64,0.00020273,2]
[349536739,1737283883463,-1000.0,0.00020273,2]
[349536740,1737283883473,-633.29,0.00020273,2]
[349536741,1737283883483,-500.0,0.00020273,2]
[349536742,1737283883492,-500.0,0.00020273,2]
[349536743,1737283883501,-500.0,0.00020273,2]
[349536744,1737283883510,-500.0,0.00020273,2]
[349536745,1737283883520,-500.0,0.00020273,2]
[349536746,1737283883528,-1313.29,0.00020273,2]
[349536747,1737283883538,-500.0,0.00020273,2]
[349536748,1737283883547,-659.22,0.00020273,2]
[349536749,1737283883557,-917.59,0.00020273,2]
[349536750,1737283883566,-500.0,0.00020273,2]
[349536751,1737283883575,-500.0,0.00020273,2]
[349536752,1737283883584,-562.37,0.00020273,2]
[349536753,1737283883593,-633.86,0.00020273,2]
[349536754,1737283883602,-1551.56,0.00020273,2]
[349536755,1737283883611,-500.0,0.00020273,2]
[349536756,1737283883620,-500.0,0.00020273,2]
[349536757,1737283883629,-497.050586,0.00020273,2]
[349536758,1737283883639,-500.0,0.00020273,2]
[349536759,1737283883648,-1631.28,0.00020273,2]
[349536760,1737283883657,-509.87,0.00020273,2]
[349536761,1737283883666,-500.0,0.00020273,2]
[349536762,1737283883676,-500.0,0.00020273,2]
[349536763,1737283883686,-500.0,0.00020273,2]
[349536764,1737283883699,-516.91754911,0.00020273,2]
[349536765,1737283883709,-497.050586,0.00020273,2]
[349536766,1737283883719,-11562.91,0.00020273,2]
[349536767,1737283883728,-500.0,0.00020273,2]
[349536768,1737283883738,-2945.05,0.00020273,2]
[349536769,1737283883747,-500.0,0.00020273,2]
[349536770,1737283883756,-1288.18,0.00020273,2]
[349536771,1737283883766,-1035.44,0.00020273,2]
[349536772,1737283883775,-500.0,0.00020273,2]
[349536773,1737283883784,-500.0,0.00020273,2]
[349536774,1737283883793,-604.12,0.00020273,2]
[349536775,1737283883802,-701.15,0.00020273,2]
[349536776,1737283883811,-684.27,0.00020273,2]
[349536777,1737283883820,-163.96972046,0.00020273,2]
[349536778,1737283883829,-726.31,0.00020273,2]
[349536779,1737283883838,-500.0,0.00020273,2]
[349536780,1737283883847,-693.12,0.00020273,2]
[349536781,1737283883856,-1243.35,0.00020273,2]
[349536782,1737283883865,-500.0,0.00020273,2]
[349536783,1737283883874,-500.0,0.00020273,2]
[349536784,1737283883883,-583.23,0.00020273,2]
[349536785,1737283883892,-772.83,0.00020329,2]
[349536786,1737283883902,-438.33,0.00020329,2]
[349536787,1737283883911,-772.83,0.00020329,2]
[349536788,1737283883920,-438.33,0.00020329,2]
[349536789,1737283883929,-771.72,0.00020329,2]
[349536790,1737283883938,-438.33,0.00020329,2]
[349536791,1737283883951,-438.33,0.00020329,2]
[349536792,1737283883960,-438.33,0.00020329,2]
[349536793,1737283883969,-438.33,0.00020329,2]
[349536794,1737283883979,-438.33,0.00020329,2]
[349536795,1737283883988,-438.33,0.00020329,2]
[349536796,1737283883997,-203.94393132,0.00020358,2]
[349536797,1737283884006,-165.177093,0.00020363,2]
[349536798,1737283884015,-165.177093,0.00020363,2]
[349536799,1737283884025,-156.895581,0.00020363,2]
[349536800,1737283884034,-156.895581,0.00020363,2]
[349536801,1737283884044,-215.623532,0.00020363,2]
[349536802,1737283884053,-215.623532,0.00020363,2]
[349536803,1737283884062,-871.3353095,0.00020384,2]
[349536804,1737283884071,-500.0,0.0002041,2]
[349536805,1737283884079,-152.0,0.00020472,3]
[349536806,1737283884088,-693.970146,0.00020547,2]
[349536807,1737283884097,-159.534965,0.00020547,2]
[349536808,1737283884106,-1179.248694,0.00020547,2]
[349536809,1737283884115,-500.0,0.00020547,2]
[349536810,1737283884124,-500.0,0.00020547,2]
[349536811,1737283884133,-500.0,0.00020547,2]
[349536812,1737283884142,-500.0,0.00020547,2]
[349536813,1737283884151,-500.0,0.00020547,2]
[349536814,1737283884161,-500.0,0.00020547,2]
[349536815,1737283884171,-500.0,0.00020547,2]
[349536816,1737283884180,-400.84130822,0.00020547,2]
[349536817,1737283884190,-500.0,0.00020547,2]
[349536818,1737283884202,-500.0,0.00020547,2]
[349536819,1737283884211,-500.0,0.00020547,2]
[349536820,1737283884220,-534.11542487,0.00020547,2]
[349536821,1737283884230,-616.24685767,0.00020547,2]
[349536822,1737283884239,-217.65301949,0.00020547,2]
[349536823,1737283884249,-624.42406703,0.00020547,2]
[349536824,1737283884262,-500.0,0.00020547,2]
[349536825,1737283884271,-500.0,0.00020547,2]
[349536826,1737283884280,-508.88463892,0.00020547,2]
[349536827,1737283884403,-879.97,0.00020547,2]
[349536828,1737283884413,-538.6,0.00020547,2]
[349536829,1737283884423,-560.66834767,0.00020547,2]
[349536830,1737283884432,-506.32,0.00020547,2]
[349536831,1737283884440,-1099.14,0.00020547,2]
[349536832,1737283884452,-500.0,0.00020547,2]
[349536833,1737283884461,-275.83461059,0.00020547,2]
[349536834,1737283884471,-500.0,0.00020547,2]
[349536835,1737283884480,-672.06,0.00020547,2]
[349536836,1737283884490,-500.0,0.00020547,2]
[349536837,1737283884499,-500.0,0.00020547,2]
[349536838,1737283884508,-500.0,0.00020547,2]
[349536839,1737283884516,-515.66015387,0.00020547,2]
[349536840,1737283884526,-500.0,0.00020547,2]
[349536841,1737283884536,-500.0,0.00020547,2]
[349536842,1737283884546,-500.0,0.00020547,2]
[349536843,1737283884555,-500.0,0.00020547,2]
[349536844,1737283884565,-500.0,0.00020547,2]
[349536845,1737283884575,-500.0,0.00020547,2]
[349536846,1737283884584,-500.0,0.00020547,2]
[349536847,1737283884594,-500.0,0.00020547,2]
[349536848,1737283884604,-500.0,0.00020547,2]
[349536849,1737283884613,-500.0,0.00020547,2]
[349536850,1737283884623,-500.0,0.00020547,2]
[349536851,1737283884633,-383.53758481,0.00020547,2]
[349536852,1737283884642,-500.0,0.00020547,2]
[349536853,1737283884653,-510.82214671,0.00020547,2]
[349536854,1737283884662,-500.0,0.00020547,2]
[349536855,1737283884673,-500.0,0.00020547,2]
[349536856,1737283884684,-500.0,0.00020547,2]
[349536857,1737283884693,-509.77747608,0.00020547,2]
[349536858,1737283884706,-521.17323948,0.00020547,2]
[349536859,1737283884716,-500.0,0.00020547,2]
[349536860,1737283884725,-500.0,0.00020547,2]
[349536861,1737283884735,-500.0,0.00020547,2]
[349536862,1737283884744,-791.74,0.00020547,2]
[349536863,1737283884754,-316.68412465,0.00020547,2]
[349536864,1737283884764,-500.0,0.00020547,2]
[349536865,1737283884776,-500.0,0.00020547,2]
[349536866,1737283884786,-500.0,0.00020547,2]
[349536867,1737283884796,-500.0,0.00020547,2]
[349536868,1737283884808,-500.0,0.00020547,2]
[349536869,1737283884818,-500.0,0.00020547,2]
[349536870,1737283884827,-500.0,0.00020547,2]
[349536871,1737283884837,-500.0,0.00020547,2]
[349536872,1737283884846,-500.0,0.00020547,2]
[349536873,1737283884855,-533.94,0.00020547,2]
[349536874,1737283884866,-519.63188869,0.00020547,2]
[349536875,1737283884875,-500.0,0.00020547,2]
[349536876,1737283884885,-500.0,0.00020547,2]
[349536877,1737283884894,-500.0,0.00020547,2]
[349536878,1737283884903,-969.95,0.00020547,2]
[349536879,1737283884912,-500.0,0.00020547,2]
[349536880,1737283884922,-500.0,0.00020547,2]
[349536881,1737283884931,-500.0,0.00020547,2]
[349536882,1737283884940,-500.0,0.00020547,2]
[349536883,1737283884951,-500.0,0.00020547,2]
[349536884,1737283884960,-500.0,0.00020547,2]
[349536885,1737283884970,-500.0,0.00020547,2]
[349536886,1737283884979,-500.0,0.00020547,2]
[349536887,1737283884989,-504.98807326,0.00020547,2]
[349536888,1737283884998,-1154.09,0.00020547,2]
[349536889,1737283885008,-546.77,0.00020547,2]
[349536890,1737283885018,-500.0,0.00020547,2]
[349536891,1737283885027,-500.0,0.00020547,2]
[349536892,1737283885036,-500.0,0.00020547,2]
[349536893,1737283885046,-1248.1,0.00020547,2]
[349536894,1737283885056,-500.0,0.00020547,2]
[349536895,1737283885066,-500.0,0.00020547,2]
[349536896,1737283885075,-857.42,0.00020547,2]
[349536897,1737283885084,-500.0,0.00020547,2]
[349536898,1737283885094,-1848.61,0.00020547,2]
[349536899,1737283885103,-500.0,0.00020547,2]
[349536900,1737283885113,-1098.96,0.00020547,2]
[349536901,1737283885122,-500.0,0.00020547,2]
[349536902,1737283885132,-226.19657602,0.00020547,2]
[349536903,1737283885142,-500.0,0.00020547,2]
[349536904,1737283885153,-2979.32,0.00020547,2]
[349536905,1737283885164,-500.0,0.00020547,2]
[349536906,1737283885173,-500.0,0.00020547,2]
[349536907,1737283885182,-793.62,0.00020547,2]
[349536908,1737283885191,-500.0,0.00020547,2]
[349536909,1737283885202,-260.57618485,0.00020547,2]
[349536910,1737283885211,-500.0,0.00020547,2]
[349536911,1737283885220,-519.7265706,0.00020547,2]
[349536912,1737283885230,-1198.76,0.00020547,2]
[349536913,1737283885239,-572.69,0.00020547,2]
[349536914,1737283885247,-500.0,0.00020547,2]
[349536915,1737283885258,-500.0,0.00020547,2]
[349536916,1737283885267,-500.0,0.00020547,2]
[349536917,1737283885277,-500.0,0.00020547,2]
[349536918,1737283885286,-500.0,0.00020547,2]
[349536919,1737283885296,-745.22,0.00020547,2]
[349536920,1737283885308,-500.0,0.00020547,2]
[349536921,1737283885317,-648.95376522,0.00020547,2]
[349536922,1737283885328,-590.61,0.00020547,2]
[349536923,1737283885339,-500.0,0.00020547,2]
[349536924,1737283885350,-500.0,0.00020547,2]
[349536925,1737283885359,-500.0,0.00020547,2]
[349536926,1737283885369,-500.0,0.00020547,2]
[349536927,1737283885378,-500.0,0.00020547,2]
[349536928,1737283885387,-473.81096802,0.00020547,2]
[349536929,1737283885396,-713.24,0.00020547,2]
[349536930,1737283885406,-531.94021099,0.00020547,2]
[349536931,1737283885415,-151.0,0.00020547,2]
[349536932,1737283885424,-151.0,0.00020547,2]
[349536933,1737283885433,-523.75,0.00020547,2]
[349536934,1737283885443,-536.69,0.00020547,2]
[349536935,1737283885454,-500.0,0.00020547,2]
[349536936,1737283885463,-540.32829327,0.00020547,2]
[349536937,1737283885472,-917.76,0.00020547,2]
[349536938,1737283885481,-500.0,0.00020547,2]
[349536939,1737283885490,-512.37,0.00020547,2]
[349536940,1737283885499,-500.0,0.00020547,2]
[349536941,1737283885508,-541.39,0.00020547,2]
[349536942,1737283885518,-766.68,0.00020547,2]
[349536943,1737283885528,-776.23,0.00020547,2]
[349536944,1737283885537,-500.0,0.00020547,2]
[349536945,1737283885546,-500.0,0.00020547,2]
[349536946,1737283885555,-500.0,0.00020547,2]
[349536947,1737283885564,-500.0,0.00020547,2]
[349536948,1737283885574,-500.0,0.00020547,2]
[349536949,1737283885583,-415.27909919,0.00020547,2]
[349536950,1737283885594,-182.84108766,0.00020547,2]
[349536951,1737283885604,-518.56,0.00020547,2]
[349536952,1737283885613,-522.20851528,0.00020547,2]
[349536953,1737283885623,-500.0,0.00020547,2]
[349536954,1737283885632,-783.5,0.00020547,2]
[349536955,1737283885641,-500.0,0.00020547,2]
[349536956,1737283885651,-584.68,0.00020547,2]
[349536957,1737283885660,-532.80047708,0.00020547,2]
[349536958,1737283885670,-500.0,0.00020547,2]
[349536959,1737283885679,-500.0,0.00020547,2]
[349536960,1737283885688,-500.0,0.00020547,2]
[349536961,1737283885700,-1116.59,0.00020547,2]
[349536962,1737283885709,-500.0,0.00020547,2]
[349536963,1737283885718,-500.0,0.00020547,2]
[349536964,1737283885728,-500.0,0.00020547,2]
[349536965,1737283885737,-500.0,0.00020547,2]
[349536966,1737283885746,-500.0,0.00020547,2]
[349536967,1737283885755,-500.0,0.00020547,2]
[349536968,1737283885765,-500.0,0.00020547,2]
[349536969,1737283885774,-500.0,0.00020547,2]
[349536970,1737283885784,-500.0,0.00020547,2]
[349536971,1737283885793,-604.63827165,0.00020547,2]
[349536972,1737283885803,-702.08,0.00020547,2]
[349536973,1737283885812,-546.50731201,0.00020547,2]
[349536974,1737283885821,-2602.19,0.00020547,2]
[349536975,1737283885831,-466.98207498,0.00020547,2]
[349536976,1737283885840,-500.0,0.00020547,2]
[349536977,1737283885849,-500.0,0.00020547,2]
[349536978,1737283885859,-500.0,0.00020547,2]
[349536979,1737283885869,-500.0,0.00020547,2]
[349536980,1737283885879,-500.0,0.00020547,2]
[349536981,1737283885888,-500.0,0.00020547,2]
[349536982,1737283885900,-500.0,0.00020547,2]
[349536983,1737283885910,-565.03,0.00020547,2]
[349536984,1737283885920,-500.0,0.00020547,2]
[349536985,1737283885929,-500.0,0.00020547,2]
[349536986,1737283885939,-500.0,0.00020547,2]
[349536987,1737283885952,-500.0,0.00020547,2]
[349536988,1737283885961,-500.0,0.00020547,2]
[349536989,1737283885970,-500.0,0.00020547,2]
[349536990,1737283885980,-500.0,0.00020547,2]
[349536991,1737283885989,-500.0,0.00020547,2]
[349536992,1737283885998,-500.0,0.00020547,2]
[349536993,1737283886007,-500.0,0.00020547,2]
[349536994,1737283886016,-500.0,0.00020547,2]
[349536995,1737283886025,-500.0,0.00020547,2]
[349536996,1737283886034,-500.0,0.00020547,2]
[349536997,1737283886043,-500.0,0.00020547,2]
[349536998,1737283886053,-500.0,0.00020547,2]
[349536999,1737283886171,-519.70571105,0.00020547,2]
[349537000,1737283886182,-500.0,0.00020547,2]
[349537001,1737283886191,-500.0,0.00020547,2]
[349537002,1737283886203,-500.0,0.00020547,2]
[349537003,1737283886212,-500.0,0.00020547,2]
[349537004,1737283886221,-500.0,0.00020547,2]
[349537005,1737283886230,-500.0,0.00020547,2]
[349537006,1737283886240,-359.29952695,0.00020547,2]
[349537007,1737283886250,-500.0,0.00020547,2]
[349537008,1737283886264,-500.0,0.00020547,2]
[349537009,1737283886272,-500.0,0.00020547,2]
[349537010,1737283886281,-500.0,0.00020547,2]
[349537011,1737283886290,-273.76027295,0.00020547,2]
[349537012,1737283886299,-500.0,0.00020547,2]
[349537013,1737283886310,-500.0,0.00020547,2]
[349537014,1737283886319,-500.0,0.00020547,2]
[349537015,1737283886328,-500.0,0.00020547,2]
[349537016,1737283886338,-500.0,0.00020547,2]
[349537017,1737283886348,-500.0,0.00020547,2]
[349537018,1737283886358,-500.0,0.00020547,2]
[349537019,1737283886367,-500.0,0.00020547,2]
[349537020,1737283886377,-500.0,0.00020547,2]
[349537021,1737283886386,-500.0,0.00020547,2]
[349537022,1737283886396,-500.0,0.00020547,2]
[349537023,1737283886405,-500.0,0.00020547,2]
[349537024,1737283886414,-500.0,0.00020547,2]
[349537025,1737283886425,-500.0,0.00020547,2]
[349537026,1737283886435,-500.0,0.00020547,2]
[349537027,1737283886447,-500.0,0.00020547,2]
[349537028,1737283886456,-500.0,0.00020547,2]
[349537029,1737283886465,-500.0,0.00020547,2]
[349537030,1737283886475,-500.0,0.00020547,2]
[349537031,1737283886483,-500.0,0.00020547,2]
[349537032,1737283886493,-500.0,0.00020547,2]
[349537033,1737283886502,-500.0,0.00020547,2]
[349537034,1737283886511,-500.0,0.00020547,2]
[349537035,1737283886521,-500.0,0.00020547,2]
[349537036,1737283886530,-2043.55,0.00020547,2]
[349537037,1737283886538,-500.0,0.00020547,2]
[349537038,1737283886547,-165.177093,0.00020547,2]
[349537039,1737283886557,-500.0,0.00020547,2]
[349537040,1737283886566,-549.86,0.00020547,2]